Cogmind - Beta 13 @@@ ROGUE MODE // 2024.03.15 @ 21:36:45 Player: Baxter Result: Destroyed by D-53 Grenadier with Mini Grenade Launcher Performance ------------- Evolutions (0) 0 Regions Visited (2) 400 Robots Destroyed (20) 100 Value Destroyed (357) 357 Prototype IDs (0) 0 Alien Tech Used (0) 0 Bonus (0) 0 TOTAL SCORE: 857 Bonus ------- None Cogmind --------- Core Integrity 0/250 Matter 300/300 Energy 100/100 System Corruption 0% Temperature Cool (0) Movement Core (350) Ox6 Location -10/Mines Parts ------- > --- POWER (1) -------- (None) > --- PROPULSION (2) --- (None) > --- UTILITY (2) ------ Large Storage Unit > --- WEAPON (2) ------- (None) > --- INVENTORY (15) --- Ion Engine Light Ion Engine Light Ion Engine Light Ion Engine Aluminum Leg Large Storage Unit Improved Terrain Scanner Seismic Detector Light Armor Plating Tractor Beam Light Assault Rifle Light Cannon Grenade Launcher Hammer Peak State ------------ > --- POWER ------------ Light Nuclear Core > --- PROPULSION ------- Aluminum Leg Aluminum Leg > --- UTILITY ---------- Large Storage Unit Light Armor Plating > --- WEAPON ----------- Medium Laser Medium Laser > --- INVENTORY -------- Ion Engine Light Ion Engine Light Ion Engine Light Ion Engine Aluminum Leg Aluminum Leg Wheel Large Storage Unit Improved Terrain Scanner Seismic Detector Seismic Detector Tractor Beam Assault Rifle Light Assault Rifle Light Cannon [Rating: 10] Favorites ----------- Power Light Ion Engine Engine Light Ion Engine Power Core Light Nuclear Core Propulsion Aluminum Leg Leg Aluminum Leg Wheel Wheel Utility Large Storage Unit Device Seismic Detector Storage Large Storage Unit Protection Light Armor Plating Weapon Medium Laser Energy Gun Medium Laser Ballistic Gun Assault Rifle Build | -11 -10 -10 ------- Run | Yrd Mat Min Slots Evolved . | . . . Power . | . . . Propulsion . | . . . Utility . | . . . Weapon . | . . . Parts Attached 18 | 7 9 2 Power 2 | 1 1 . Engine 1 | 1 . . Core 1 | . 1 . Reactor . | . . . Propulsion 6 | 2 3 1 Treads . | . . . Leg 5 | 2 2 1 Wheel 1 | . 1 . Hover . | . . . Flight . | . . . Utility 7 | 2 4 1 Device 3 | 1 1 1 Storage 3 | 1 2 . Processor . | . . . Hackware . | . . . Protection 1 | . 1 . Artifact . | . . . Weapon 3 | 2 1 . Energy Gun 2 | 2 . . Energy Cannon . | . . . Ballistic Gun 1 | . 1 . Ballistic Cannon . | . . . Launcher . | . . . Special Weapon . | . . . Impact Weapon . | . . . Slashing Weapon . | . . . Piercing Weapon . | . . . Special Melee Weapon . | . . . Unidentified Prototypes . | . . . Parts Lost 10 | . 2 8 Power 1 | . . 1 Propulsion 4 | . 1 3 Utility 2 | . . 2 Weapon 3 | . 1 2 Highest Loss Streak 6 | . 2 6 To Critical Strikes . | . . . Average Slot Usage (%) 98 | . 99 96 Engine 9 | . 12 . Core 4 | . 1 13 Leg 24 | . 26 13 Wheel 3 | . . 13 Device 6 | . 6 7 Storage 14 | . 14 14 Protection 7 | . 7 5 Energy Gun 24 | . 26 13 Ballistic Gun 3 | . . 13 Naked Turns . | . . . Heaviest Build 32 | 13 32 32 Greatest Support 20 | 20 20 10 Greatest Overweight (x) 6 | 2 3 6 Average Overweight (x) 1 | . 1 2 Largest Inventory Capacity 15 | 8 15 15 Average Capacity 14 | 7 14 15 Most Carried 15 | 8 15 15 Average Carried 11 | 4 12 14 Final Capacity 15 | 8 15 15 Final Carried 14 | 8 14 14 Class Distribution -------------------- 100% | Mutant Dominant Class ---------------- Mutant | -10/Materials Mutant | -10/Mines Resources | -11 -10 -10 ----------- Run | Yrd Mat Min Matter Collected 524 | 270 226 28 Remotely . | . . . Salvage Created 607 | 141 368 98 Parts 28 | 9 14 5 Haulers Intercepted . | . . . Recyclers Shooed 2 | . 2 . Parts Field Recycled . | . . . Retrieved Matter . | . . . Parts Self-Destructed . | . . . Prevented . | . . . Kills | -11 -10 -10 ------- Run | Yrd Mat Min Combat Hostiles Destroyed 10 | . 8 2 Guns 9 | . 7 2 Classes Destroyed 7 | 2 5 . Worker 4 | . 4 . Tunneler 3 | 3 . . Recycler 1 | 1 . . Operator 1 | . 1 . Watcher 1 | . 1 . Swarmer 3 | . 3 . Grunt 7 | . 5 2 Best Kill Streak 3 | 3 3 2 Combat Bots Only 2 | . 2 2 Max Kills in Single Turn 1 | 1 1 1 Gunslinging . | . . . Exploded . | . . . Melee . | . . . Uniques/NPCs Destroyed . | . . . Combat | -11 -10 -10 -------- Run | Yrd Mat Min Hostile Shots Fired 75 | . 44 31 Missed 12 | . 5 7 Damage Taken 967 | . 439 528 Core 257 | . 55 202 Absorbed by Shields . | . . . Core Remaining (%) 100 | 100 . . Volleys Fired 66 | 7 53 6 Largest 2 | 2 2 2 Hottest 100 | 100 100 70 Shots Fired 123 | 14 97 12 Gun 123 | 14 97 12 Cannon . | . . . Launcher . | . . . Special . | . . . Kinetic 8 | . 2 6 Thermal 115 | 14 95 6 Explosive . | . . . Electromagnetic . | . . . Robot Hit Streak 7 | 5 7 4 Robot Miss Streak 3 | 2 3 1 Penetration Max . | . . . Secondary Targets . | . . . Shots Hit Robots 77 | 9 60 8 Core Hits 31 | 5 22 4 Critical Kills . | . . . Critical Parts Destroyed . | . . . Critical Strikes 7 | 1 4 2 Burn 7 | 1 4 2 Melee Attacks . | . . . Impact . | . . . Slashing . | . . . Piercing . | . . . Sneak Attacks . | . . . Combat Hostiles . | . . . Follow-up Attacks . | . . . Damage Inflicted 1074 | 114 850 110 Guns 1070 | 114 846 110 Cannons . | . . . Explosions . | . . . Melee . | . . . Ramming 4 | . 4 . Kinetic 95 | . 25 70 Thermal 975 | 114 821 40 Explosive . | . . . Electromagnetic . | . . . Impact . | . . . Slashing . | . . . Piercing . | . . . Highest Corruption . | . . . Average Corruption . | . . . Corruption Purged . | . . . Corruption Blocked . | . . . Overload Shots . | . . . Overflow Damage . | . . . Projectiles . | . . . Explosions . | . . . Melee . | . . . Knockbacks . | . . . Impact . | . . . Kinetic . | . . . Secondary . | . . . Self-Inflicted Damage . | . . . Shots . | . . . Rammed . | . . . Targets Rammed 1 | . 1 . Kicked 1 | . 1 . Crushed . | . . . Highest Temperature 531 | 118 531 144 Average Temperature 134 | 60 149 80 Received Heat Transfer 339 | . 198 141 Effects 15 | . 15 . Shutdowns 4 | . 4 . Energy Bleed 1 | . 1 . Interference 1 | . 1 . Matter Decay 2 | . 2 . Damage (major) 6 | . 6 . Damage (core) 1 | . 1 . Siege Activations . | . . . Robots Corrupted . | . . . Combat Hostiles . | . . . Parts Fried . | . . . Impact Corruptions . | . . . Robots Melted 1 | . 1 . Combat Hostiles 1 | . 1 . Parts Melted 7 | 2 5 . Heat Transferred 3293 | 407 2627 259 Parts Sabotaged . | . . . Parts Stolen . | . . . Parts Stripped . | . . . Power Chain Reactions . | . . . Alert | -11 -10 -10 ------- Run | Yrd Mat Min Peak Influence 170 | 20 170 75 Initial 45 | . 13 45 Average 71 | 9 81 61 Maximum Alert Level . | . . . Low Security (%) 100 | 100 100 100 Level 1 . | . . . Level 2 . | . . . Level 3 . | . . . Level 4 . | . . . Level 5 . | . . . High Security . | . . . Max Security . | . . . Squads Dispatched 2 | . 2 . Investigation . | . . . Extermination . | . . . Reinforcement 2 | . 2 . Assault . | . . . Garrison . | . . . Intercept . | . . . Searches Triggered . | . . . Construction Impeded . | . . . Haulers Reinforced . | . . . Active Scanning Responses . | . . . Cargo Convoy Interrupts . | . . . Stealth | -11 -10 -10 --------- Run | Yrd Mat Min Distress Signals 1 | . 1 . Communications Jammed . | . . . Distress Signals . | . . . Times Spotted 28 | . 21 7 Peak Tracking Total 4 | . 4 4 Tactical Retreats 1 | . 1 . Traps | -11 -10 -10 ------- Run | Yrd Mat Min Traps Triggered . | . . . Indirectly . | . . . Trap Hack Attempts . | . . . Triggered . | . . . Disarmed . | . . . Reprogrammed . | . . . Reused . | . . . Traps Extracted . | . . . Installed . | . . . Triggered . | . . . Machines | -11 -10 -10 ---------- Run | Yrd Mat Min Machines Disabled . | . . . Max in Single Turn . | . . . Machines Repaired . | . . . Machines Dismantled . | . . . Machines Sabotaged . | . . . Overloaded Fab Kills . | . . . Hacking | -11 -10 -10 --------- Run | Yrd Mat Min Machines Accessed 5 | . 5 . Terminals 5 | . 5 . Fabricators . | . . . Repair Stations . | . . . Recycling Units . | . . . Scanalyzers . | . . . Garrison Access . | . . . Total Hacks 20 | . 20 . Successful 11 | . 11 . Failed 9 | . 9 . Catastrophic 1 | . 1 . Database Lockouts . | . . . Manual 18 | . 18 . Terminals 20 | . 20 . Fabricators . | . . . Repair Stations . | . . . Recycling Units . | . . . Scanalyzers . | . . . Garrison Access . | . . . Terminal Hacks 5 | . 5 . Record 1 | . 1 . Robot Analysis 2 | . 2 . Terminal Index 1 | . 1 . Alert Level 1 | . 1 . Fabricator Hacks . | . . . Repair Station Hacks . | . . . Recycling Unit Hacks . | . . . Scanalyzer . | . . . Garrison Access Hacks . | . . . Unauthorized Hacks 6 | . 6 . Terminals 6 | . 6 . Assimilate 1 | . 1 . Botnet 5 | . 5 . Fabricators . | . . . Repair Stations . | . . . Recycling Units . | . . . Scanalyzers . | . . . Garrison Access . | . . . Data Cores Recovered . | . . . Used . | . . . Hacking Detections 1 | . 1 . Full Trace Events . | . . . Feedback Events . | . . . Feedback Blocked . | . . . Robot Schematics Acquired . | . . . Robots Built . | . . . Authchips . | . . . Time . | . . . Total Robot Build Rating . | . . . Part Schematics Acquired . | . . . Parts Built . | . . . Authchips . | . . . Time . | . . . Total Part Build Rating . | . . . Parts Repaired . | . . . Time . | . . . Parts Recycled . | . . . Recycled Matter . | . . . Retrieved Matter . | . . . Retrieved Components . | . . . Parts Scanalyzed . | . . . Part Schematics Acquired . | . . . Parts Damaged . | . . . Bothacking | -11 -10 -10 ------------ Run | Yrd Mat Min Used RIF Installer . | . . . Robots Hacked . | . . . Non-combat . | . . . Combat . | . . . Robot Hacks Applied . | . . . Relay Couplers Released . | . . . Fabnet Peak Effective % . | . . . Robots Rewired . | . . . Allies Hacked . | . . . Hacks Repelled . | . . . Allies | -11 -10 -10 -------- Run | Yrd Mat Min Total Allies . | . . . Largest Group . | . . . Highest-Rated Group . | . . . Highest-Rated Ally . | . . . Total Orders . | . . . Ally Attacks . | . . . Total Damage . | . . . Kills . | . . . Allies Corrupted . | . . . Allies Melted . | . . . Intel | -11 -10 -10 ------- Run | Yrd Mat Min Robot Analysis Total 2 | . 2 . Derelict Logs Recovered 1 | . . 1 Drone Launches . | . . . Drone Recoveries . | . . . Exploration | -11 -10 -10 ------------- Run | Yrd Mat Min Turns Passed 1502 | 145 1093 264 Spaces Moved 799 | 93 503 203 Core 16 | 14 . 2 Treads . | . . . Legs 531 | 79 452 . Wheels 252 | . 51 201 Hover . | . . . Flight . | . . . Fastest Speed 50 | 50 120 95 Average Speed 155 | 113 179 117 Slowest Speed 350 | 150 260 350 Overloaded Moves . | . . . Propulsion Burnouts . | . . . Robots Hopped . | . . . Cave-ins Triggered . | . . . Exploration Rate (%) 45 | 5 78 54 Regions Visited 2 Branch Regions 1 Pre-discovered Areas . | . . . Known Exits Taken . | . . . Unknown Exits Taken 2 | 1 1 . Scrap Searched 1 | . . 1 Spaces Dug . | . . . Terrain Destroyed . | . . . Melee . | . . . Projectile . | . . . AOE . | . . . Terrain Rammed . | . . . Walls Destroyed . | . . . Machines Disabled . | . . . Actions | -11 -10 -10 --------- Run | Yrd Mat Min Total 928 | 115 597 216 Wait 22 | . 19 3 Move 797 | 92 502 203 Hop . | . . . Pick Up 19 | 9 8 2 Fast Attach 6 | 6 . . Attach 5 | 1 2 2 Detach . | . . . Swap 7 | . 7 . Drop 5 | . 5 . Fire 66 | 7 53 6 Melee . | . . . Ram . | . . . Kick 1 | . 1 . Crush . | . . . Escape Stasis . | . . . Rewire . | . . . Trap . | . . . Miscellaneous . | . . . Route ------- -11/Scrapyard -10/Materials (discovered 4 exits: [*Mat x2] / [*Min x2]) -10/Mines (discovered 2 exits: [*Mat x2]) History --------- Turn | Location | Event 6 | -11/Scrapyard | Discovered new exit (range 16) 146 | -11/Scrapyard | Entered Materials 178 | -10/Materials | Discovered new exit (range 12) 281 | -10/Materials | Discovered new exit (range 16) 324 | -10/Materials | Build established: Mutant 859 | -10/Materials | Discovered new exit (range 11) 1026 | -10/Materials | Discovered new exit (range 9) 1239 | -10/Materials | Entered Mines 1360 | -10/Mines | Discovered new exit (range 14) 1372 | -10/Mines | Discovered new exit (range 16) 1463 | -10/Mines | Assembled infested the area 1494 | -10/Mines | Core integrity fell below 50% 1502 | -10/Mines | Core integrity fell below 20% 1503 | -10/Mines | Destroyed by D-53 Grenadier with Mini Grenade Launcher Last Messages --------------- 01359_ Acquired Lgt. Armor Plating. 01360_ EXIT=FOUND 01451_ Acquired derelict log, extracted data. Data stored: Mines entrances (x2). 01463_ ALERT: Infestation in the mines, dispatching Demolisher response squad. 01484_ C-30 ARC bursts open, deploying its payload. 01484_ D-53 Grenadier unfolds itself. 01490_ Plasma Injector explodes. 01490_ Med. Laser destroyed. 01490_ Seismic Detector destroyed. 01492_ Assault Rifle destroyed. 01493_ Aluminum Leg destroyed. 01493_ Machine disabled. 01494_ Lgt. Nuclear Core destroyed. 01495_ Wheel destroyed. 01498_ as-67226 destroyed. 01499_ The unstable cave ceiling collapses. 01501_ Critical hit (Burn: +37). Map ----- +----------------------------------------------------+ | ?????????????????????????????????????????????????? | | ????????????? ???????????????????????????????????? | | ???????????? ?????????????????????????????????? | | ???????????? ????????????????????????????????? | | ??????????? ????????????????????????????????? | | ??????????? ????????????????????????????????? | | ?????????? ?????????????????????????????????? | | ?????????# ???????????????????????????????????? | | ?????#### ????????????????????????????????????? | | ????## ?????????????????????????????????????? | | ??### ??????????????????????????????????????? | | ?## ???????????????????????????????????????? | | ## #????????????????????????????????????????? | | # ####?????????????????????????????????????? | | # #?? ?#???????????????????????????????? | | ?# ### ### ? ??????????????????????????????? | | ?#######?# # ???####??????????????????????? | | ?????????### # ####|!##????????? ???????????? | | ???????????# #"!| #??????## ????????????? | | ???????????# # # +????? ?????????????? | | ???????????# # +????uu???????????????? | | ???????????# # Y![ #?? ##???????????????? | | ??????????## Y |!##? #???????????????? | | ??????????# # #???????????????? | | ??????????# #????????????????? | | ??????????## d @ #??????????????? ## | | ??????####?# d # ######?????????????? | | ?????## ### ## #??????????????????? | | ????## ## ###??????????????????? | | ???## ### ###????????????????????? | | ??## ##?# # # ###??????????????????????? | | ??# #### #######????????????????????????? | | ??# #???????????????????????????????# | | ?## #???????????????????????????????# | | ?# ### ###???##???????????#????????????### | | ?# ## ##### ##??????????# ???????????? | | ?# " #?????? ?# ????????????# | | ?## ### "% #????? ## ????????????# | | ??###??## ##????? < # #???????????# | | ????????# """" ##??????? #??????##### | | ?????#### """" ##????????? #?????# | | ?????# """" #???????????# ###??# % | | ?????## #????????????# ##?#= #### | | ??????#### ##?????????????# #?#% #??## | | ???????## ##??????????????# ###= #???# | | ??????## ##????????????????# % #???? | | ??????# ##????????????????# |! #???? | | ??????# #????????????????# ######???? | | ??????## #????????####????# ##????????? | | ???????## ## ##???????## ##???## ##?????????? | +----------------------------------------------------+ Best States ------------- Heat Dissipation 25 Energy Generation 14 Energy Capacity 160 Matter Stores 300 Matter Capacity 300 Sight Range 16 Terrain Scan Density 10 Armor Coverage 150 Evasion (%) 55 Item Schematics ----------------- None Robot Schematics ------------------ None Fabricated ------------ Nothing Alien Tech Used ----------------- None Achievements -------------- None Challenges ------------ None Game ------ Seed ConcussiveWarpGuard Manual? 0 Play Time 00:10:48 Cumulative 45.1 hours Start 2024.03.15 @ 21:24:18 End 2024.03.15 @ 21:36:45 Sessions 1 Manual Loads 0 Difficulty Rogue Special Mode None Game No. 48 Rogue 48 Adventurer 0 Explorer 0 Win Type - Total 0 Types 0/0/0/0/0/0/0/0/0 Lore% 23 Gallery% 31 Achievement% 26 Wizard Run 0 Options --------- Layout 1 ASCII 0 Keyboard 0 Movement Numpad Keybinds 0 Fullscreen 2 Font 24/X11 Map View 50x35 Zoom Use 1% Tactical HUD 1 Map Filters NONE Filters NONE Steam 0 RUN: 430b7d8c-0f06-455a-8042-c05320f0c58e